[Event "Titled Tuesday Blitz April 18 Late 2023"]
[White "Meunier-Pion, Jean"]
[Black "ChessSG1"]
[WhiteFideId "20685327"]
[WhiteElo "2124"]
[BlackElo "2239"]
[Result "1-0"]
[Round "05"]
[TimeControl "180+2"]
[Date "2023.04.18"]
[WhiteClock "0:00:06"]
[BlackClock "0:00:02"]

1. d4 {[%clk 0:03:00]}  Nf6 {[%clk 0:02:59]} 2. c4 {[%clk 0:03:00]}  e6 {[%clk 0:02:59]} 3. g3 {[%clk 0:03:01]}  c5 {[%clk 0:02:57]} 4. d5 {[%clk 0:02:57]}  exd5 {[%clk 0:02:58]} 5. cxd5 {[%clk 0:02:57]}  d6 {[%clk 0:02:59]} 6. Bg2 {[%clk 0:02:58]}  g6 {[%clk 0:02:59]} 7. Nf3 {[%clk 0:02:58]}  Bg7 {[%clk 0:02:58]} 8. O-O {[%clk 0:02:57]}  O-O {[%clk 0:02:58]} 9. Nc3 {[%clk 0:02:58]}  a6 {[%clk 0:02:59]} 10. a4 {[%clk 0:02:58]}  Re8 {[%clk 0:02:57]} 11. Bf4 {[%clk 0:02:58]}  Qc7 {[%clk 0:02:37]} 12. Nd2 {[%clk 0:02:58]}  Nh5 {[%clk 0:02:28]} 13. Nc4 {[%clk 0:02:58]}  Nxf4 {[%clk 0:02:25]} 14. gxf4 {[%clk 0:02:59]}  Nd7 {[%clk 0:02:05]} 15. Ne4 {[%clk 0:02:36]}  Bf8 {[%clk 0:01:49]} 16. a5 {[%clk 0:02:36]}  f5 {[%clk 0:01:31]} 17. Nb6 {[%clk 0:02:24]}  fxe4 {[%clk 0:01:11]} 18. Nxa8 {[%clk 0:02:24]}  Qd8 {[%clk 0:01:08]} 19. Ra4 {[%clk 0:02:08]}  Nf6 {[%clk 0:01:07]} 20. Nb6 {[%clk 0:02:04]}  Bf5 {[%clk 0:01:08]} 21. b4 {[%clk 0:01:36]}  Bh6 {[%clk 0:01:05]} 22. e3 {[%clk 0:01:26]}  Bg4 {[%clk 0:01:02]} 23. f3 {[%clk 0:01:18]}  exf3 {[%clk 0:01:00]} 24. Bxf3 {[%clk 0:01:18]}  Bh3 {[%clk 0:01:00]} 25. Re1 {[%clk 0:01:18]}  Ne4 {[%clk 0:00:46]} 26. Bxe4 {[%clk 0:01:11]}  Rxe4 {[%clk 0:00:45]} 27. bxc5 {[%clk 0:01:07]}  Rxa4 {[%clk 0:00:36]} 28. Nxa4 {[%clk 0:00:59]}  Qh4 {[%clk 0:00:36]} 29. c6 {[%clk 0:00:39]}  bxc6 {[%clk 0:00:35]} 30. dxc6 {[%clk 0:00:39]}  Bg4 {[%clk 0:00:34]} 31. Qd5+ {[%clk 0:00:34]}  Kg7 {[%clk 0:00:29]} 32. Rf1 {[%clk 0:00:32]}  Qh3 {[%clk 0:00:22]} 33. Qd4+ {[%clk 0:00:27]}  Kf7 {[%clk 0:00:22]} 34. Qe4 {[%clk 0:00:16]}  Be2 {[%clk 0:00:20]} 35. Rf2 {[%clk 0:00:14]}  Qg4+ {[%clk 0:00:13]} 36. Rg2 {[%clk 0:00:12]}  Qh5 {[%clk 0:00:10]} 37. c7 {[%clk 0:00:11]}  Bg4 {[%clk 0:00:11]} 38. Qc4+ {[%clk 0:00:09]}  d5 {[%clk 0:00:07]} 39. Qc1 {[%clk 0:00:08]}  Bc8 {[%clk 0:00:07]} 40. Nc5 {[%clk 0:00:07]}  d4 {[%clk 0:00:06]} 41. Nd3 {[%clk 0:00:08]}  dxe3 {[%clk 0:00:04]} 42. Ne5+ {[%clk 0:00:07]}  Kg7 {[%clk 0:00:05]} 43. Qa1 {[%clk 0:00:06]}  Kf8 {[%clk 0:00:02]} 44. Qa3+ {[%clk 0:00:05]}  Ke8 {[%clk 0:00:02]} 45. Qa4+ {[%clk 0:00:05]}  Kf8 {[%clk 0:00:02]} 46. Qb4+ {[%clk 0:00:06]}  Kg8 {[%clk 0:00:02]} 47. Qc4+ {[%clk 0:00:06]} 1-0


[Site "https://www.chess.com"]

[Event "Titled Tuesday Blitz April 18 Late 2023"]
[White "lluiss"]
[Black "Bilan, Danila"]
[BlackFideId "24161918"]
[WhiteElo "2292"]
[BlackElo "2182"]
[Result "1-0"]
[Round "05"]
[TimeControl "180+2"]
[Date "2023.04.18"]
[WhiteClock "0:00:11"]
[BlackClock "0:00:01"]

1. Nf3 {[%clk 0:03:00]}  d5 {[%clk 0:02:58]} 2. d4 {[%clk 0:03:00]}  Nf6 {[%clk 0:02:58]} 3. c4 {[%clk 0:02:59]}  c6 {[%clk 0:02:58]} 4. cxd5 {[%clk 0:02:59]}  cxd5 {[%clk 0:02:58]} 5. Nc3 {[%clk 0:03:00]}  Nc6 {[%clk 0:02:58]} 6. Bf4 {[%clk 0:03:00]}  Bf5 {[%clk 0:02:59]} 7. e3 {[%clk 0:02:59]}  e6 {[%clk 0:02:59]} 8. Bd3 {[%clk 0:02:59]}  Bg6 {[%clk 0:02:57]} 9. O-O {[%clk 0:02:58]}  Bd6 {[%clk 0:02:57]} 10. Bxd6 {[%clk 0:02:58]}  Qxd6 {[%clk 0:02:58]} 11. Ne1 {[%clk 0:02:58]}  O-O {[%clk 0:02:47]} 12. Bxg6 {[%clk 0:02:56]}  hxg6 {[%clk 0:02:47]} 13. Nd3 {[%clk 0:02:57]}  Rfc8 {[%clk 0:02:43]} 14. Qd2 {[%clk 0:02:53]}  a6 {[%clk 0:02:37]} 15. Rfc1 {[%clk 0:02:48]}  Na5 {[%clk 0:02:31]} 16. b3 {[%clk 0:02:47]}  Nd7 {[%clk 0:02:08]} 17. Rc2 {[%clk 0:02:37]}  Rc7 {[%clk 0:01:31]} 18. Rac1 {[%clk 0:02:36]}  Rac8 {[%clk 0:01:31]} 19. h3 {[%clk 0:02:36]}  b6 {[%clk 0:01:08]} 20. Na4 {[%clk 0:02:19]}  Nf6 {[%clk 0:00:55]} 21. f3 {[%clk 0:01:58]}  Rxc2 {[%clk 0:00:44]} 22. Rxc2 {[%clk 0:01:57]}  Rxc2 {[%clk 0:00:45]} 23. Qxc2 {[%clk 0:01:57]}  b5 {[%clk 0:00:45]} 24. Qc8+ {[%clk 0:01:41]}  Kh7 {[%clk 0:00:44]} 25. Nac5 {[%clk 0:01:41]}  Nc6 {[%clk 0:00:21]} 26. Qxa6 {[%clk 0:01:36]}  Qc7 {[%clk 0:00:14]} 27. Qxb5 {[%clk 0:01:31]}  Ne7 {[%clk 0:00:09]} 28. Ne5 {[%clk 0:01:27]}  Nf5 {[%clk 0:00:08]} 29. Kf2 {[%clk 0:01:21]}  Qa7 {[%clk 0:00:08]} 30. a4 {[%clk 0:01:16]}  Nh5 {[%clk 0:00:07]} 31. Nb7 {[%clk 0:00:47]}  Qb8 {[%clk 0:00:06]} 32. g4 {[%clk 0:00:44]}  f6 {[%clk 0:00:05]} 33. gxh5 {[%clk 0:00:44]}  fxe5 {[%clk 0:00:05]} 34. hxg6+ {[%clk 0:00:44]}  Kxg6 {[%clk 0:00:06]} 35. Nc5 {[%clk 0:00:33]}  Qd8 {[%clk 0:00:05]} 36. Nxe6 {[%clk 0:00:27]}  Qh4+ {[%clk 0:00:04]} 37. Ke2 {[%clk 0:00:27]}  Qxh3 {[%clk 0:00:04]} 38. Qe8+ {[%clk 0:00:26]}  Kf6 {[%clk 0:00:04]} 39. dxe5+ {[%clk 0:00:11]}  Kxe5 {[%clk 0:00:01]} 40. Nf4+ {[%clk 0:00:11]}  Kd6 {[%clk 0:00:01]} 41. Nxh3 {[%clk 0:00:11]} 1-0


[Site "https://www.chess.com"]

[Event "Titled Tuesday Blitz April 18 Late 2023"]
[White "Smith, Garrett L"]
[Black "Santos Flores, Alberto"]
[WhiteFideId "2024829"]
[BlackFideId "3601234"]
[WhiteElo "2290"]
[BlackElo "2235"]
[Result "1-0"]
[Round "05"]
[TimeControl "180+2"]
[Date "2023.04.18"]
[WhiteClock "0:00:20"]
[BlackClock "0:00:35"]

1. e4 {[%clk 0:03:00]}  c5 {[%clk 0:02:08]} 2. a3 {[%clk 0:02:21]}  e6 {[%clk 0:02:05]} 3. b4 {[%clk 0:02:21]}  Nf6 {[%clk 0:02:01]} 4. e5 {[%clk 0:02:18]}  Nd5 {[%clk 0:02:01]} 5. c4 {[%clk 0:02:12]}  Nb6 {[%clk 0:01:59]} 6. bxc5 {[%clk 0:02:11]}  Bxc5 {[%clk 0:01:59]} 7. d4 {[%clk 0:02:11]}  Be7 {[%clk 0:01:59]} 8. Bd3 {[%clk 0:02:10]}  d6 {[%clk 0:01:59]} 9. exd6 {[%clk 0:02:00]}  Bf6 {[%clk 0:01:59]} 10. Nf3 {[%clk 0:01:58]}  Nc6 {[%clk 0:01:59]} 11. Be3 {[%clk 0:01:52]}  O-O {[%clk 0:01:54]} 12. O-O {[%clk 0:01:50]}  Bd7 {[%clk 0:01:49]} 13. Nbd2 {[%clk 0:01:47]}  e5 {[%clk 0:01:39]} 14. d5 {[%clk 0:01:12]}  Na5 {[%clk 0:01:39]} 15. Qc2 {[%clk 0:01:08]}  Rc8 {[%clk 0:01:37]} 16. Bxh7+ {[%clk 0:01:08]}  Kh8 {[%clk 0:01:37]} 17. Bf5 {[%clk 0:01:07]}  Naxc4 {[%clk 0:01:32]} 18. Nxc4 {[%clk 0:01:02]}  Nxc4 {[%clk 0:01:31]} 19. Bxd7 {[%clk 0:00:52]}  Qxd7 {[%clk 0:01:21]} 20. Ng5 {[%clk 0:00:34]}  g6 {[%clk 0:01:11]} 21. Qe4 {[%clk 0:00:33]}  Kg7 {[%clk 0:01:00]} 22. Rab1 {[%clk 0:00:26]}  Nxe3 {[%clk 0:00:57]} 23. Qxe3 {[%clk 0:00:25]}  b6 {[%clk 0:00:51]} 24. Ne4 {[%clk 0:00:25]}  Bd8 {[%clk 0:00:51]} 25. Rfc1 {[%clk 0:00:25]}  f5 {[%clk 0:00:51]} 26. Ng5 {[%clk 0:00:23]}  Re8 {[%clk 0:00:46]} 27. Ne6+ {[%clk 0:00:22]}  Kh7 {[%clk 0:00:44]} 28. Qxe5 {[%clk 0:00:20]}  Rxc1+ {[%clk 0:00:42]} 29. Rxc1 {[%clk 0:00:20]}  b5 {[%clk 0:00:35]} 30. Rc3 {[%clk 0:00:20]} 1-0


[Site "https://www.chess.com"]

[Event "Titled Tuesday Blitz April 18 Late 2023"]
[White "Shubenkova, Veronika"]
[Black "Onslow, Alfie"]
[WhiteFideId "44124040"]
[BlackFideId "436976"]
[WhiteElo "2027"]
[BlackElo "2114"]
[Result "1-0"]
[Round "05"]
[TimeControl "180+2"]
[Date "2023.04.18"]
[WhiteClock "0:01:39"]
[BlackClock "0:00:08"]

1. e4 {[%clk 0:02:50]}  g6 {[%clk 0:02:59]} 2. d4 {[%clk 0:02:50]}  Bg7 {[%clk 0:02:59]} 3. c4 {[%clk 0:02:50]}  Nc6 {[%clk 0:02:54]} 4. Be3 {[%clk 0:02:48]}  e5 {[%clk 0:02:54]} 5. dxe5 {[%clk 0:02:46]}  Bxe5 {[%clk 0:02:53]} 6. Nc3 {[%clk 0:02:46]}  d6 {[%clk 0:02:50]} 7. Bd3 {[%clk 0:02:42]}  Nge7 {[%clk 0:02:49]} 8. Nge2 {[%clk 0:02:42]}  O-O {[%clk 0:02:49]} 9. a3 {[%clk 0:02:40]}  f5 {[%clk 0:02:47]} 10. exf5 {[%clk 0:02:39]}  Bxf5 {[%clk 0:02:47]} 11. O-O {[%clk 0:02:37]}  Qd7 {[%clk 0:02:46]} 12. Ng3 {[%clk 0:02:36]}  Bxd3 {[%clk 0:02:41]} 13. Qxd3 {[%clk 0:02:35]}  Rae8 {[%clk 0:02:41]} 14. f4 {[%clk 0:02:32]}  Bg7 {[%clk 0:02:39]} 15. Rae1 {[%clk 0:02:31]}  Nf5 {[%clk 0:02:32]} 16. Bf2 {[%clk 0:02:27]}  Nxg3 {[%clk 0:02:26]} 17. hxg3 {[%clk 0:02:21]}  Qf5 {[%clk 0:02:26]} 18. Qd5+ {[%clk 0:02:12]}  Qxd5 {[%clk 0:02:15]} 19. Nxd5 {[%clk 0:02:12]}  Rc8 {[%clk 0:02:09]} 20. b4 {[%clk 0:02:10]}  Rfe8 {[%clk 0:02:03]} 21. b5 {[%clk 0:02:09]}  Na5 {[%clk 0:01:48]} 22. Ne7+ {[%clk 0:02:07]}  Kf7 {[%clk 0:01:49]} 23. Nxc8 {[%clk 0:02:07]}  Rxc8 {[%clk 0:01:50]} 24. Re4 {[%clk 0:02:05]}  Bf6 {[%clk 0:01:46]} 25. g4 {[%clk 0:02:05]}  h6 {[%clk 0:01:45]} 26. g5 {[%clk 0:02:04]}  Bg7 {[%clk 0:01:40]} 27. gxh6 {[%clk 0:02:04]}  Bxh6 {[%clk 0:01:39]} 28. Bd4 {[%clk 0:02:04]}  Nb3 {[%clk 0:01:36]} 29. Bc3 {[%clk 0:02:03]}  Nc5 {[%clk 0:01:36]} 30. Re2 {[%clk 0:02:01]}  Nd3 {[%clk 0:01:18]} 31. f5 {[%clk 0:02:01]}  Nf4 {[%clk 0:01:14]} 32. fxg6+ {[%clk 0:02:00]}  Kxg6 {[%clk 0:01:14]} 33. Re7 {[%clk 0:01:59]}  Rf8 {[%clk 0:01:05]} 34. Bd2 {[%clk 0:01:45]}  c6 {[%clk 0:00:27]} 35. Bxf4 {[%clk 0:01:44]}  Bxf4 {[%clk 0:00:26]} 36. g3 {[%clk 0:01:44]}  Bh6 {[%clk 0:00:18]} 37. Re6+ {[%clk 0:01:41]}  Kh5 {[%clk 0:00:08]} 38. Rxh6+ {[%clk 0:01:39]}  Kxh6 {[%clk 0:00:08]} 1-0


[Site "https://www.chess.com"]

[Event "Titled Tuesday Blitz April 18 Late 2023"]
[White "Mikheev, Stanislav"]
[Black "Romero Ruscalleda, Josep"]
[WhiteFideId "4135920"]
[BlackFideId "2231859"]
[WhiteElo "2230"]
[BlackElo "2183"]
[Result "1-0"]
[Round "05"]
[TimeControl "180+2"]
[Date "2023.04.18"]
[WhiteClock "0:00:27"]
[BlackClock "0:00:08"]

1. c4 {[%clk 0:02:59]}  g6 {[%clk 0:02:58]} 2. g3 {[%clk 0:02:59]}  Bg7 {[%clk 0:02:56]} 3. Bg2 {[%clk 0:03:00]}  d6 {[%clk 0:02:56]} 4. d4 {[%clk 0:03:01]}  Nf6 {[%clk 0:02:54]} 5. Nf3 {[%clk 0:03:02]}  O-O {[%clk 0:02:54]} 6. O-O {[%clk 0:03:02]}  Bf5 {[%clk 0:02:50]} 7. Nc3 {[%clk 0:03:02]}  Ne4 {[%clk 0:02:49]} 8. Qb3 {[%clk 0:02:30]}  Nxc3 {[%clk 0:02:46]} 9. bxc3 {[%clk 0:02:29]}  Nd7 {[%clk 0:02:23]} 10. Nh4 {[%clk 0:02:23]}  Nb6 {[%clk 0:02:04]} 11. Nxf5 {[%clk 0:02:20]}  gxf5 {[%clk 0:02:04]} 12. Bxb7 {[%clk 0:02:14]}  Rb8 {[%clk 0:02:04]} 13. Bg2 {[%clk 0:02:13]}  c5 {[%clk 0:01:55]} 14. Rd1 {[%clk 0:01:49]}  Qc7 {[%clk 0:01:49]} 15. d5 {[%clk 0:01:35]}  Nxd5 {[%clk 0:01:46]} 16. Bxd5 {[%clk 0:01:17]}  Rxb3 {[%clk 0:01:44]} 17. axb3 {[%clk 0:01:17]}  e6 {[%clk 0:01:42]} 18. Bf3 {[%clk 0:01:15]}  Bxc3 {[%clk 0:01:41]} 19. Ra6 {[%clk 0:01:15]}  Rd8 {[%clk 0:01:34]} 20. Bf4 {[%clk 0:01:14]}  e5 {[%clk 0:01:31]} 21. Bg5 {[%clk 0:01:11]}  Rd7 {[%clk 0:01:28]} 22. Bc6 {[%clk 0:01:04]}  Qc8 {[%clk 0:01:17]} 23. Bxd7 {[%clk 0:00:56]}  Qxa6 {[%clk 0:01:15]} 24. Bxf5 {[%clk 0:00:57]}  Kg7 {[%clk 0:01:01]} 25. h4 {[%clk 0:00:56]}  f6 {[%clk 0:00:55]} 26. Be3 {[%clk 0:00:54]}  Qa2 {[%clk 0:00:53]} 27. Rxd6 {[%clk 0:00:53]}  Bd4 {[%clk 0:00:32]} 28. Rd7+ {[%clk 0:00:50]}  Kf8 {[%clk 0:00:32]} 29. Bh6+ {[%clk 0:00:43]}  Ke8 {[%clk 0:00:31]} 30. e3 {[%clk 0:00:44]}  Bc3 {[%clk 0:00:19]} 31. Rb7 {[%clk 0:00:42]}  Qa1+ {[%clk 0:00:18]} 32. Kg2 {[%clk 0:00:42]}  Qa6 {[%clk 0:00:18]} 33. Be4 {[%clk 0:00:40]}  Kd8 {[%clk 0:00:18]} 34. Rxh7 {[%clk 0:00:36]}  Qb6 {[%clk 0:00:17]} 35. Rb7 {[%clk 0:00:34]}  Qd6 {[%clk 0:00:16]} 36. Bg7 {[%clk 0:00:33]}  Kc8 {[%clk 0:00:15]} 37. h5 {[%clk 0:00:33]}  Qe6 {[%clk 0:00:14]} 38. h6 {[%clk 0:00:32]}  f5 {[%clk 0:00:14]} 39. h7 {[%clk 0:00:31]}  fxe4 {[%clk 0:00:12]} 40. Rxa7 {[%clk 0:00:30]}  Kb8 {[%clk 0:00:08]} 41. Ra2 {[%clk 0:00:28]}  Qf7 {[%clk 0:00:07]} 42. h8=Q+ {[%clk 0:00:28]}  Kb7 {[%clk 0:00:08]} 43. Qa8+ {[%clk 0:00:27]}  Kb6 {[%clk 0:00:08]} 44. Ra6+ {[%clk 0:00:27]} 1-0


[Site "https://www.chess.com"]

[Event "Titled Tuesday Blitz April 18 Late 2023"]
[White "Estremera Panos, Sergio"]
[Black "Fernandez Garcia, Gumersindo"]
[WhiteFideId "2200864"]
[BlackFideId "24516740"]
[WhiteElo "2253"]
[BlackElo "2093"]
[Result "1-0"]
[Round "05"]
[TimeControl "180+2"]
[Date "2023.04.18"]
[WhiteClock "0:00:17"]
[BlackClock "0:00:02"]

1. d4 {[%clk 0:02:47]}  Nf6 {[%clk 0:02:54]} 2. c4 {[%clk 0:02:47]}  d6 {[%clk 0:02:55]} 3. Nf3 {[%clk 0:02:43]}  Nbd7 {[%clk 0:02:53]} 4. Nc3 {[%clk 0:02:40]}  e5 {[%clk 0:02:33]} 5. e3 {[%clk 0:02:33]}  g6 {[%clk 0:02:27]} 6. Bd3 {[%clk 0:02:27]}  Bg7 {[%clk 0:02:26]} 7. O-O {[%clk 0:02:24]}  O-O {[%clk 0:02:25]} 8. d5 {[%clk 0:02:20]}  Nc5 {[%clk 0:02:14]} 9. e4 {[%clk 0:02:19]}  a5 {[%clk 0:02:12]} 10. b3 {[%clk 0:02:13]}  Nh5 {[%clk 0:02:09]} 11. Ne1 {[%clk 0:02:09]}  Bf6 {[%clk 0:02:03]} 12. Be3 {[%clk 0:02:01]}  b6 {[%clk 0:01:59]} 13. Qd2 {[%clk 0:01:59]}  Ng7 {[%clk 0:01:56]} 14. Rb1 {[%clk 0:01:52]}  Be7 {[%clk 0:01:53]} 15. a3 {[%clk 0:01:51]}  f5 {[%clk 0:01:44]} 16. f3 {[%clk 0:01:51]}  f4 {[%clk 0:01:41]} 17. Bf2 {[%clk 0:01:51]}  g5 {[%clk 0:01:39]} 18. b4 {[%clk 0:01:52]}  axb4 {[%clk 0:01:39]} 19. axb4 {[%clk 0:01:53]}  Nxd3 {[%clk 0:01:39]} 20. Nxd3 {[%clk 0:01:52]}  h5 {[%clk 0:01:40]} 21. c5 {[%clk 0:01:52]}  bxc5 {[%clk 0:01:38]} 22. bxc5 {[%clk 0:01:52]}  g4 {[%clk 0:01:37]} 23. Nb4 {[%clk 0:01:26]}  Bd7 {[%clk 0:01:20]} 24. c6 {[%clk 0:01:22]}  Bc8 {[%clk 0:01:19]} 25. Ra1 {[%clk 0:01:22]}  Rb8 {[%clk 0:01:15]} 26. Rfb1 {[%clk 0:01:14]}  gxf3 {[%clk 0:01:09]} 27. gxf3 {[%clk 0:01:14]}  Bh4 {[%clk 0:01:08]} 28. Ba7 {[%clk 0:01:11]}  Ra8 {[%clk 0:01:00]} 29. Kh1 {[%clk 0:01:10]}  Bh3 {[%clk 0:00:57]} 30. Rg1 {[%clk 0:01:08]}  Kh8 {[%clk 0:00:47]} 31. Nc2 {[%clk 0:01:05]}  Qf6 {[%clk 0:00:46]} 32. Bf2 {[%clk 0:00:57]}  Rxa1 {[%clk 0:00:23]} 33. Rxa1 {[%clk 0:00:55]}  Rg8 {[%clk 0:00:18]} 34. Rg1 {[%clk 0:00:54]}  Ne8 {[%clk 0:00:17]} 35. Qe1 {[%clk 0:00:51]}  Bxf2 {[%clk 0:00:12]} 36. Qxf2 {[%clk 0:00:50]}  Rxg1+ {[%clk 0:00:13]} 37. Qxg1 {[%clk 0:00:48]}  Qh4 {[%clk 0:00:11]} 38. Ne2 {[%clk 0:00:31]}  Ng7 {[%clk 0:00:11]} 39. Ne1 {[%clk 0:00:29]}  Bc8 {[%clk 0:00:10]} 40. Ng2 {[%clk 0:00:19]}  Qh3 {[%clk 0:00:08]} 41. Qf2 {[%clk 0:00:18]}  Kh7 {[%clk 0:00:08]} 42. Ng1 {[%clk 0:00:18]}  Bg4 {[%clk 0:00:02]} 43. Nxh3 {[%clk 0:00:18]}  Bxh3 {[%clk 0:00:03]} 44. Qh4 {[%clk 0:00:18]}  Bc8 {[%clk 0:00:02]} 45. Qd8 {[%clk 0:00:17]} 1-0


[Site "https://www.chess.com"]

[Event "Titled Tuesday Blitz April 18 Late 2023"]
[White "Pein, Jonathan"]
[Black "Sariego Figueredo, Wilfredo"]
[WhiteFideId "417092"]
[BlackFideId "3500080"]
[WhiteElo "2151"]
[BlackElo "2309"]
[Result "1-0"]
[Round "05"]
[TimeControl "180+2"]
[Date "2023.04.18"]
[WhiteClock "0:00:47"]
[BlackClock "0:00:05"]

1. e4 {[%clk 0:02:54]}  c5 {[%clk 0:03:00]} 2. g3 {[%clk 0:02:53]}  a6 {[%clk 0:02:57]} 3. Bg2 {[%clk 0:02:53]}  Nc6 {[%clk 0:02:57]} 4. Ne2 {[%clk 0:02:54]}  b5 {[%clk 0:02:57]} 5. d4 {[%clk 0:02:53]}  cxd4 {[%clk 0:02:57]} 6. Nxd4 {[%clk 0:02:54]}  Bb7 {[%clk 0:02:57]} 7. O-O {[%clk 0:02:52]}  e5 {[%clk 0:02:55]} 8. Nf5 {[%clk 0:02:50]}  g6 {[%clk 0:02:37]} 9. Nd6+ {[%clk 0:02:50]}  Bxd6 {[%clk 0:02:37]} 10. Qxd6 {[%clk 0:02:50]}  Qe7 {[%clk 0:02:37]} 11. Qc7 {[%clk 0:02:47]}  d6 {[%clk 0:02:30]} 12. Qb6 {[%clk 0:02:40]}  Nf6 {[%clk 0:02:01]} 13. Bg5 {[%clk 0:02:39]}  Rb8 {[%clk 0:02:00]} 14. Nc3 {[%clk 0:02:39]}  Qe6 {[%clk 0:01:53]} 15. Bh6 {[%clk 0:02:09]}  Nd7 {[%clk 0:01:48]} 16. Qc7 {[%clk 0:02:01]}  Nd4 {[%clk 0:01:24]} 17. Rad1 {[%clk 0:01:51]}  f6 {[%clk 0:00:25]} 18. f4 {[%clk 0:01:45]}  Kf7 {[%clk 0:00:19]} 19. fxe5 {[%clk 0:01:10]}  dxe5 {[%clk 0:00:20]} 20. Nd5 {[%clk 0:01:11]}  Bxd5 {[%clk 0:00:12]} 21. exd5 {[%clk 0:01:12]}  Qe7 {[%clk 0:00:10]} 22. Bh3 {[%clk 0:01:02]}  Nb6 {[%clk 0:00:10]} 23. Be6+ {[%clk 0:01:02]}  Ke8 {[%clk 0:00:09]} 24. Qxb8+ {[%clk 0:01:00]}  Qd8 {[%clk 0:00:09]} 25. Qb7 {[%clk 0:00:49]}  Nxe6 {[%clk 0:00:05]} 26. dxe6 {[%clk 0:00:47]} 1-0


[Site "https://www.chess.com"]

[Event "Titled Tuesday Blitz April 18 Late 2023"]
[White "Sailer, Mike"]
[Black "KorolDimitriy75"]
[WhiteFideId "2012901"]
[WhiteElo "2109"]
[BlackElo "2381"]
[Result "1-0"]
[Round "05"]
[TimeControl "180+2"]
[Date "2023.04.18"]
[WhiteClock "0:00:10"]
[BlackClock "0:00:02"]

1. d4 {[%clk 0:03:00]}  Nf6 {[%clk 0:02:59]} 2. Bg5 {[%clk 0:02:58]}  Ne4 {[%clk 0:02:58]} 3. Bf4 {[%clk 0:02:58]}  c5 {[%clk 0:02:58]} 4. f3 {[%clk 0:02:58]}  Nf6 {[%clk 0:02:56]} 5. d5 {[%clk 0:02:58]}  d6 {[%clk 0:02:54]} 6. e4 {[%clk 0:02:57]}  g6 {[%clk 0:02:55]} 7. c4 {[%clk 0:02:56]}  Bg7 {[%clk 0:02:55]} 8. Nc3 {[%clk 0:02:57]}  O-O {[%clk 0:02:55]} 9. Bd3 {[%clk 0:02:58]}  a6 {[%clk 0:02:55]} 10. Nge2 {[%clk 0:02:55]}  e6 {[%clk 0:02:54]} 11. a4 {[%clk 0:02:53]}  exd5 {[%clk 0:02:48]} 12. cxd5 {[%clk 0:02:52]}  Re8 {[%clk 0:02:45]} 13. O-O {[%clk 0:02:52]}  Nh5 {[%clk 0:02:45]} 14. Bd2 {[%clk 0:02:29]}  Nd7 {[%clk 0:02:44]} 15. Qc1 {[%clk 0:02:12]}  Ne5 {[%clk 0:02:20]} 16. Bc2 {[%clk 0:02:07]}  Nc4 {[%clk 0:02:07]} 17. Bg5 {[%clk 0:02:00]}  Qb6 {[%clk 0:01:18]} 18. b3 {[%clk 0:01:57]}  Ne5 {[%clk 0:01:16]} 19. Be3 {[%clk 0:01:51]}  Bd7 {[%clk 0:01:01]} 20. h3 {[%clk 0:01:48]}  f5 {[%clk 0:00:47]} 21. exf5 {[%clk 0:01:38]}  Bxf5 {[%clk 0:00:33]} 22. Bxf5 {[%clk 0:01:36]}  gxf5 {[%clk 0:00:33]} 23. Rb1 {[%clk 0:01:31]}  Ng6 {[%clk 0:00:19]} 24. Bh6 {[%clk 0:01:17]}  Rac8 {[%clk 0:00:11]} 25. Bxg7 {[%clk 0:01:16]}  Nxg7 {[%clk 0:00:11]} 26. Kh1 {[%clk 0:01:11]}  Re7 {[%clk 0:00:10]} 27. Nf4 {[%clk 0:01:05]}  Rce8 {[%clk 0:00:09]} 28. Nxg6 {[%clk 0:00:50]}  hxg6 {[%clk 0:00:10]} 29. Qh6 {[%clk 0:00:44]}  Kf7 {[%clk 0:00:10]} 30. Qf4 {[%clk 0:00:19]}  Re3 {[%clk 0:00:08]} 31. Nd1 {[%clk 0:00:15]}  R3e5 {[%clk 0:00:05]} 32. Nf2 {[%clk 0:00:14]}  Re3 {[%clk 0:00:02]} 33. h4 {[%clk 0:00:10]} 1-0


[Site "https://www.chess.com"]

[Event "Titled Tuesday Blitz April 18 Late 2023"]
[White "Tarnowska, Aleksandra"]
[Black "micke12a"]
[WhiteFideId "1180967"]
[WhiteElo "1776"]
[BlackElo "2363"]
[Result "0-1"]
[Round "05"]
[TimeControl "180+2"]
[Date "2023.04.18"]
[WhiteClock "0:00:01"]
[BlackClock "0:00:30"]

1. e4 {[%clk 0:03:00]}  c5 {[%clk 0:02:58]} 2. Nf3 {[%clk 0:03:00]}  d6 {[%clk 0:02:58]} 3. Bb5+ {[%clk 0:02:59]}  Bd7 {[%clk 0:02:58]} 4. Bxd7+ {[%clk 0:02:58]}  Qxd7 {[%clk 0:02:55]} 5. O-O {[%clk 0:02:59]}  Nf6 {[%clk 0:02:52]} 6. Nc3 {[%clk 0:02:58]}  Nc6 {[%clk 0:02:51]} 7. d4 {[%clk 0:02:56]}  cxd4 {[%clk 0:02:51]} 8. Nxd4 {[%clk 0:02:56]}  g6 {[%clk 0:02:51]} 9. Bg5 {[%clk 0:02:49]}  Bg7 {[%clk 0:02:50]} 10. Nxc6 {[%clk 0:02:25]}  bxc6 {[%clk 0:02:49]} 11. h3 {[%clk 0:02:10]}  O-O {[%clk 0:02:47]} 12. e5 {[%clk 0:01:47]}  Ne8 {[%clk 0:02:17]} 13. exd6 {[%clk 0:01:38]}  exd6 {[%clk 0:02:18]} 14. Qf3 {[%clk 0:01:31]}  d5 {[%clk 0:02:06]} 15. Rfe1 {[%clk 0:01:22]}  Nd6 {[%clk 0:02:04]} 16. Re7 {[%clk 0:01:06]}  Qf5 {[%clk 0:01:48]} 17. Qg3 {[%clk 0:00:51]}  Nc4 {[%clk 0:01:32]} 18. Na4 {[%clk 0:00:32]}  Rfe8 {[%clk 0:01:16]} 19. Rae1 {[%clk 0:00:32]}  Rxe7 {[%clk 0:01:14]} 20. Rxe7 {[%clk 0:00:31]}  Qxc2 {[%clk 0:01:12]} 21. b3 {[%clk 0:00:26]}  Nd2 {[%clk 0:00:58]} 22. Bxd2 {[%clk 0:00:15]}  Qxd2 {[%clk 0:00:57]} 23. Qc7 {[%clk 0:00:16]}  Rf8 {[%clk 0:00:52]} 24. Qxc6 {[%clk 0:00:11]}  d4 {[%clk 0:00:48]} 25. Qe4 {[%clk 0:00:04]}  d3 {[%clk 0:00:45]} 26. Qe1 {[%clk 0:00:02]}  Qxa2 {[%clk 0:00:41]} 27. Qd1 {[%clk 0:00:01]}  d2 {[%clk 0:00:37]} 28. Re2 {[%clk 0:00:01]}  Rd8 {[%clk 0:00:33]} 29. Nc5 {[%clk 0:00:01]}  Qa1 {[%clk 0:00:29]} 30. Qxa1 {[%clk 0:00:01]}  Bxa1 {[%clk 0:00:30]} 0-1


[Site "https://www.chess.com"]